fUST/lending_fUST_20250814
["ID","MTS","AMOUNT","RATE_DAILY","PERIOD"]
[379065360,1755112260806,-460.0,0.0002,2]
[379065361,1755112260816,-504.02,0.0002,2]
[379065362,1755112260826,-1000.0,0.0002,2]
[379065363,1755112260838,-460.0,0.0002,2]
[379065364,1755112260849,-460.0,0.0002,2]
[379065365,1755112260859,-492.54,0.0002,2]
[379065366,1755112260868,-460.0,0.0002,2]
[379065367,1755112260879,-460.0,0.0002,2]
[379065368,1755112260891,-857.53,0.0002,2]
[379065369,1755112260901,-460.0,0.0002,2]
[379065370,1755112260912,-621.45,0.0002,2]
[379065371,1755112260923,-460.0,0.0002,2]
[379065372,1755112260934,-553.84178222,0.0002,2]
[379065373,1755112260943,-993.26,0.0002,2]
[379065374,1755112260953,-460.0,0.0002,2]
[379065375,1755112260962,-460.0,0.0002,2]
[379065376,1755112260972,-460.0,0.0002,2]
[379065377,1755112260982,-631.82,0.0002,2]
[379065378,1755112260992,-1450.23,0.0002,2]
[379065379,1755112261002,-758.58,0.0002,2]
[379065380,1755112261011,-288.02377944,0.0002,2]
[379065381,1755112261022,-151.152792,0.0002,2]
[379065382,1755112261032,-460.0,0.0002,2]
[379065383,1755112261042,-478.03,0.0002,2]
[379065384,1755112261051,-460.0,0.0002,2]
[379065385,1755112261062,-460.0,0.0002,2]
[379065386,1755112261072,-460.0,0.0002,2]
[379065387,1755112261082,-460.0,0.0002,2]
[379065388,1755112261091,-667.42,0.0002,2]
[379065389,1755112261101,-460.0,0.0002,2]
[379065390,1755112261111,-512.05,0.0002,2]
[379065391,1755112261122,-519.14,0.0002,2]
[379065392,1755112261131,-460.0,0.0002,2]
[379065393,1755112261141,-460.0,0.0002,2]
[379065394,1755112261150,-1433.16,0.0002,2]
[379065395,1755112261161,-679.1,0.0002,2]
[379065396,1755112261170,-1322.3,0.0002,2]
[379065397,1755112261179,-488.5,0.0002,2]
[379065398,1755112261189,-3263.4,0.0002,2]
[379065399,1755112261198,-460.0,0.0002,2]
[379065400,1755112261211,-460.0,0.0002,2]
[379065401,1755112261221,-460.0,0.0002,2]
[379065402,1755112261233,-460.0,0.0002,2]
[379065403,1755112261242,-460.0,0.0002,2]
[379065404,1755112261253,-460.0,0.0002,2]
[379065405,1755112261263,-1889.47,0.0002,2]
[379065406,1755112261273,-460.0,0.0002,2]
[379065407,1755112261282,-460.0,0.0002,2]
[379065408,1755112261292,-460.0,0.0002,2]
[379065409,1755112261303,-1003.25,0.0002,2]
[379065410,1755112261312,-460.0,0.0002,2]
[379065411,1755112261322,-660.48,0.0002,2]
[379065412,1755112261332,-460.0,0.0002,2]
[379065413,1755112261342,-460.0,0.0002,2]
[379065414,1755112261352,-940.35,0.0002,2]
[379065415,1755112261363,-460.0,0.0002,2]
[379065416,1755112261373,-789.95,0.0002,2]
[379065417,1755112261384,-460.0,0.0002,2]
[379065418,1755112261395,-497.82,0.0002,2]
[379065419,1755112261406,-460.0,0.0002,2]
[379065420,1755112261416,-460.0,0.0002,2]
[379065421,1755112261427,-460.0,0.0002,2]
[379065422,1755112261437,-1349.1,0.0002,2]
[379065423,1755112261447,-1531.04,0.0002,2]
[379065424,1755112261460,-567.76,0.0002,2]
[379065425,1755112261470,-735.44,0.0002,2]
[379065426,1755112261479,-460.0,0.0002,2]
[379065427,1755112261490,-460.0,0.0002,2]
[379065428,1755112261499,-151.0,0.0002,2]
[379065429,1755112261509,-1231.08,0.0002,2]
[379065430,1755112261518,-2237.5060135,0.0002,2]
[379065431,1755112290395,11562.92828319,0.00018209,2]
[379065433,1755112510380,-200.0,0.00020136,20]
[379065434,1755112510415,-200.0,0.00020136,20]
[379065435,1755112510451,-200.0,0.00020136,20]
[379065436,1755112510484,-200.0,0.00020136,20]
[379065437,1755112521311,-200.0,0.00022108,20]
[379065438,1755112521340,-200.0,0.00022108,20]
[379065439,1755112521369,-200.0,0.00022108,20]
[379065440,1755112521397,-200.0,0.00022108,20]
[379065441,1755112521426,-320.0,0.00022108,20]
[379065443,1755112563942,200.0,0.00020135,20]
[379065444,1755112564779,200.0,0.00020135,20]
[379065445,1755112565545,200.0,0.00020135,20]
[379065446,1755112566328,200.0,0.00020135,20]
[379065447,1755112567113,200.0,0.00022107,20]
[379065448,1755112567908,200.0,0.00022107,20]
[379065449,1755112568663,200.0,0.00022107,20]
[379065450,1755112569433,200.0,0.00022107,20]
[379065451,1755112570184,320.0,0.00022107,20]
[379065452,1755112610919,-10000.0,0.00025,60]
[379065454,1755112654753,-250.0,0.000205,10]
[379065455,1755112654799,-250.0,0.000206,10]
[379065456,1755112674383,-416.55,0.00022,7]
[379065457,1755112674406,-9083.45,0.00022,7]
[379065458,1755112683328,-160.106242,0.0002489,30]
[379065459,1755112683360,-162.90863975,0.00024986,30]
[379065460,1755112692871,-173.33010149,0.00025155,30]
[379065461,1755112692902,-162.90863975,0.00025315,30]
[379065462,1755112692933,-160.106242,0.00025885,30]
[379065463,1755112692956,-156.89,0.00026,30]
[379065465,1755112766438,311.199038,0.00013699,2]
[379065468,1755112863610,200.0,0.00020031,20]
[379065469,1755112864377,200.0,0.00020031,20]
[379065470,1755112865156,200.0,0.00020031,20]
[379065471,1755112866201,200.0,0.00020031,20]
[379065472,1755112867058,200.0,0.00021993,20]
[379065473,1755112867731,160.0,0.00021993,20]
[379065474,1755112913860,153.435149,0.00025885,30]
[379065488,1755113249876,24900.0,0.00018094,2]
[379065491,1755113259120,375.51372,0.000181,2]
[379065561,1755113432705,-467.09929999,0.00018309,2]
[379065563,1755113432716,-156.44988681,0.00018309,2]
[379065565,1755113432726,-300.0,0.00018499,2]
[379065567,1755113432735,-300.0,0.00018499,2]
[379065569,1755113432744,-1200.0,0.00018499,2]
[379065571,1755113432754,-16518.62486428,0.000185,2]
[379065573,1755113432763,-303.36400343,0.000189,2]
[379065575,1755113432772,-700.584395,0.00019073,2]
[379065577,1755113432782,-1200.0,0.00019077,2]
[379065579,1755113432791,-338.90916676,0.00019078,2]
[379065581,1755113432800,-5067.34656254,0.00019078,2]
[379065843,1755113440310,-3958.56721816,0.00019078,2]
[379065848,1755113441341,-30537.05867739,0.00019078,2]
[379065849,1755113441351,-254.73106241,0.00019089,2]
[379065850,1755113441361,-338.90916676,0.00019147,2]
[379065851,1755113441371,-151.0,0.00019166,2]
[379065852,1755113441381,-263.54304095,0.00019166,2]
[379065853,1755113441391,-151.0,0.00019166,2]
[379065854,1755113441400,-500.0,0.00019166,2]
[379065855,1755113441410,-151.0,0.00019166,2]
[379065856,1755113441420,-500.0,0.00019166,2]
[379065857,1755113441430,-151.0,0.00019166,2]
[379065858,1755113441440,-151.0,0.00019166,2]
[379065859,1755113441453,-151.0,0.00019166,2]
[379065860,1755113441464,-151.0,0.00019166,2]
[379065861,1755113441474,-151.0,0.00019166,2]
[379065862,1755113441484,-151.0,0.00019166,2]
[379065863,1755113441495,-151.0,0.00019166,2]
[379065864,1755113441504,-151.0,0.00019166,2]
[379065865,1755113441514,-151.0,0.00019166,2]
[379065866,1755113441524,-151.0,0.00019166,2]
[379065867,1755113441535,-151.0,0.00019166,2]
[379065868,1755113441546,-151.0,0.00019166,2]
[379065869,1755113441556,-151.0,0.00019166,2]
[379065870,1755113441566,-50000.0,0.00019172,2]
[379065871,1755113441576,-160.0,0.00019172,2]
[379065872,1755113441585,-259.92604748,0.00019173,2]
[379065873,1755113441595,-334.68504628,0.00019173,2]
[379065874,1755113441605,-500.0,0.00019173,2]
[379065875,1755113441615,-500.0,0.00019173,2]
[379065876,1755113441624,-207.45011972,0.00019173,2]
[379065877,1755113441635,-531.31961904,0.00019173,2]
[379065878,1755113441645,-500.0,0.00019173,2]
[379065879,1755113441654,-500.0,0.00019173,2]
[379065880,1755113441665,-500.0,0.00019173,2]
[379065881,1755113441674,-500.0,0.00019173,2]
[379065882,1755113441684,-500.0,0.00019173,2]
[379065883,1755113441694,-500.0,0.00019173,2]
[379065884,1755113441704,-500.0,0.00019173,2]
[379065885,1755113441713,-500.0,0.00019173,2]
[379065886,1755113441723,-339.1949238,0.00019173,2]
[379065887,1755113441731,-445.926801,0.00019176,2]
[379065888,1755113441741,-500.0,0.00019176,2]
[379065889,1755113441750,-500.0,0.00019176,2]
[379065890,1755113441759,-500.0,0.00019176,2]
[379065891,1755113441768,-500.0,0.00019176,2]
[379065892,1755113441778,-500.0,0.00019176,2]
[379065893,1755113441787,-650.0,0.00019176,2]
[379065894,1755113441796,-500.0,0.00019177,2]
[379065895,1755113441805,-412.88889214,0.00019177,2]
[379065896,1755113441814,-500.0,0.00019177,2]
[379065897,1755113441823,-500.0,0.00019177,2]
[379065898,1755113441832,-500.0,0.00019177,2]
[379065899,1755113441841,-500.0,0.00019177,2]
[379065900,1755113441850,-580.73597913,0.00019177,2]
[379065901,1755113441859,-500.0,0.00019177,2]
[379065902,1755113441868,-500.0,0.00019177,2]
[379065903,1755113441876,-500.0,0.00019177,2]
[379065904,1755113441886,-500.0,0.00019177,2]
[379065905,1755113441895,-500.0,0.00019177,2]
[379065906,1755113441904,-500.0,0.00019177,2]
[379065907,1755113441913,-500.0,0.00019177,2]
[379065908,1755113441922,-500.0,0.00019177,2]
[379065909,1755113441931,-500.0,0.00019177,2]
[379065910,1755113441940,-500.0,0.00019177,2]
[379065911,1755113441951,-500.0,0.00019177,2]
[379065912,1755113441960,-500.0,0.00019177,2]
[379065913,1755113441969,-500.0,0.00019177,2]
[379065914,1755113441978,-650.0,0.00019177,2]
[379065915,1755113441987,-500.0,0.00019177,2]
[379065916,1755113441997,-500.0,0.00019177,2]
[379065917,1755113442007,-500.0,0.00019177,2]
[379065918,1755113442016,-196.09188454,0.00019177,2]
[379065919,1755113442025,-460.0,0.00019178,2]
[379065920,1755113442035,-460.0,0.00019178,2]
[379065921,1755113442045,-289.5294662,0.00019178,2]
[379065922,1755113442055,-460.0,0.00019178,2]
[379065923,1755113442065,-460.0,0.00019178,2]
[379065924,1755113442074,-217.48729987,0.00019178,2]
[379065925,1755113442084,-460.0,0.00019178,2]
[379065926,1755113442093,-655.29,0.00019178,2]
[379065927,1755113442103,-460.0,0.00019178,2]
[379065928,1755113442114,-460.0,0.00019178,2]
[379065929,1755113442123,-460.0,0.00019178,2]
[379065930,1755113442133,-460.0,0.00019178,2]
[379065931,1755113442143,-368.34013408,0.00019178,2]
[379065932,1755113442152,-1195.33,0.00019178,2]
[379065933,1755113442161,-460.0,0.00019178,2]
[379065934,1755113442170,-460.0,0.00019178,2]
[379065935,1755113442180,-460.0,0.00019178,2]
[379065936,1755113442189,-460.0,0.00019178,2]
[379065937,1755113442198,-460.0,0.00019178,2]
[379065938,1755113442209,-583.58979217,0.00019178,2]
[379065939,1755113442219,-460.0,0.00019178,2]
[379065940,1755113442229,-460.0,0.00019178,2]
[379065941,1755113442239,-460.0,0.00019178,2]
[379065942,1755113442249,-460.0,0.00019178,2]
[379065943,1755113442258,-460.0,0.00019178,2]
[379065944,1755113442268,-460.0,0.00019178,2]
[379065945,1755113442278,-460.0,0.00019178,2]
[379065946,1755113442288,-460.0,0.00019178,2]
[379065947,1755113442298,-460.0,0.00019178,2]
[379065948,1755113442307,-472.36308421,0.00019178,2]
[379065949,1755113442317,-460.0,0.00019178,2]
[379065950,1755113442326,-460.0,0.00019178,2]
[379065951,1755113442335,-546.44,0.00019178,2]
[379065952,1755113442345,-460.0,0.00019178,2]
[379065953,1755113442354,-460.0,0.00019178,2]
[379065954,1755113442363,-460.0,0.00019178,2]
[379065955,1755113442373,-460.0,0.00019178,2]
[379065956,1755113442382,-460.0,0.00019178,2]
[379065957,1755113442391,-460.0,0.00019178,2]
[379065958,1755113442401,-460.0,0.00019178,2]
[379065959,1755113442411,-584.25818494,0.00019178,2]
[379065960,1755113442420,-460.0,0.00019178,2]
[379065961,1755113442429,-460.0,0.00019178,2]
[379065962,1755113442439,-460.0,0.00019178,2]
[379065963,1755113442452,-460.0,0.00019178,2]
[379065964,1755113442465,-508.59,0.00019178,2]
[379065965,1755113442475,-460.0,0.00019178,2]
[379065966,1755113442484,-460.0,0.00019178,2]
[379065967,1755113442494,-460.0,0.00019178,2]
[379065968,1755113442505,-460.0,0.00019178,2]
[379065969,1755113442514,-572.65,0.00019178,2]
[379065970,1755113442524,-509.74,0.00019178,2]
[379065971,1755113442533,-460.0,0.00019178,2]
[379065972,1755113442543,-460.0,0.00019178,2]
[379065973,1755113442552,-460.0,0.00019178,2]
[379065974,1755113442564,-460.00671985,0.00019178,2]
[379065975,1755113442577,-460.0,0.00019178,2]
[379065976,1755113442586,-216.07079488,0.00019178,2]
[379065977,1755113442604,-460.0,0.00019178,2]
[379065978,1755113442614,-460.0,0.00019178,2]
[379065979,1755113442623,-886.05,0.00019178,2]
[379065980,1755113442632,-460.0,0.00019178,2]
[379065981,1755113442641,-786.02,0.00019178,2]
[379065982,1755113442651,-460.0,0.00019178,2]
[379065983,1755113442660,-474.95051376,0.00019178,2]
[379065984,1755113442670,-460.0,0.00019178,2]
[379065985,1755113442679,-460.0,0.00019178,2]
[379065986,1755113442688,-460.0,0.00019178,2]
[379065987,1755113442698,-460.0,0.00019178,2]
[379065988,1755113442710,-638.63,0.00019178,2]
[379065989,1755113442720,-460.0,0.00019178,2]
[379065990,1755113442729,-460.0,0.00019178,2]
[379065991,1755113442738,-460.0,0.00019178,2]
[379065992,1755113442748,-460.0,0.00019178,2]
[379065993,1755113442757,-460.0,0.00019178,2]
[379065994,1755113442766,-460.0,0.00019178,2]
[379065995,1755113442776,-536.58,0.00019178,2]
[379065996,1755113442786,-1589.21,0.00019178,2]
[379065997,1755113442795,-460.0,0.00019178,2]
[379065998,1755113442805,-460.0,0.00019178,2]
[379065999,1755113442814,-460.0,0.00019178,2]
[379066000,1755113442823,-460.0,0.00019178,2]
[379066002,1755113442833,-460.0,0.00019178,2]
[379066004,1755113442843,-460.0,0.00019178,2]
[379066006,1755113442863,-460.0,0.00019178,2]
[379066008,1755113442882,-460.0,0.00019178,2]
[379066009,1755113442892,-461.77495199,0.00019178,2]
[379066012,1755113442901,-460.0,0.00019178,2]
[379066015,1755113442910,-389.50423238,0.00019178,2]
[379066017,1755113442919,-634.47,0.00019178,2]
[379066019,1755113442929,-460.0,0.00019178,2]
[379066021,1755113442938,-460.0,0.00019178,2]
[379066023,1755113442947,-460.0,0.00019178,2]
[379066025,1755113442958,-530.94,0.00019178,2]
[379066026,1755113442967,-460.0,0.00019178,2]
[379066027,1755113442976,-460.0,0.00019178,2]
[379066029,1755113442985,-460.0,0.00019178,2]
[379066031,1755113442994,-460.0,0.00019178,2]
[379066032,1755113443004,-460.0,0.00019178,2]
[379066034,1755113443013,-460.0,0.00019178,2]
[379066036,1755113443023,-235.44547186,0.00019178,2]
[379066051,1755113443466,-224.55452814,0.00019178,2]
[379066052,1755113443475,-460.0,0.00019178,2]
[379066053,1755113443484,-460.0,0.00019178,2]
[379066054,1755113443494,-460.0,0.00019178,2]
[379066055,1755113443504,-460.0,0.00019178,2]
[379066056,1755113443513,-460.0,0.00019178,2]
[379066057,1755113443522,-460.0,0.00019178,2]
[379066058,1755113443533,-621.22,0.00019178,2]
[379066059,1755113443542,-460.0,0.00019178,2]
[379066060,1755113443551,-375.7264768,0.00019178,2]
[379066062,1755113443560,-460.0,0.00019178,2]
[379066063,1755113443569,-460.0,0.00019178,2]
[379066064,1755113443579,-388.61378018,0.00019178,2]
[379066065,1755113443587,-643.04,0.00019178,2]
[379066066,1755113443596,-461.62,0.00019178,2]
[379066067,1755113443606,-462.63785801,0.00019178,2]
[379066068,1755113443615,-460.0,0.00019178,2]
[379066069,1755113443624,-460.0,0.00019178,2]
[379066070,1755113443634,-460.0,0.00019178,2]
[379066071,1755113443643,-460.0,0.00019178,2]
[379066072,1755113443653,-460.0,0.00019178,2]
[379066073,1755113443662,-460.0,0.00019178,2]
[379066074,1755113443671,-460.0,0.00019178,2]
[379066075,1755113443681,-460.0,0.00019178,2]
[379066076,1755113443691,-322.54585734,0.00019178,2]
[379066077,1755113443700,-460.0,0.00019178,2]
[379066079,1755113443710,-460.0,0.00019178,2]
[379066080,1755113443719,-738.17,0.00019178,2]
[379066081,1755113443730,-460.0,0.00019178,2]
[379066083,1755113443740,-460.0,0.00019178,2]
[379066084,1755113443750,-482.54,0.00019178,2]
[379066085,1755113443760,-460.0,0.00019178,2]
[379066086,1755113443769,-280.55528695,0.00019178,2]
[379066087,1755113443779,-460.0,0.00019178,2]
[379066088,1755113443790,-460.0,0.00019178,2]
[379066089,1755113443799,-1058.33,0.00019178,2]
[379066090,1755113443809,-460.0,0.00019178,2]
[379066091,1755113443818,-460.0,0.00019178,2]
[379066092,1755113443827,-460.0,0.00019178,2]
[379066093,1755113443836,-460.0,0.00019178,2]
[379066094,1755113443846,-460.0,0.00019178,2]
[379066095,1755113443855,-614.88,0.00019178,2]
[379066096,1755113443865,-460.0,0.00019178,2]
[379066097,1755113443874,-460.0,0.00019178,2]
[379066098,1755113443885,-460.0,0.00019178,2]
[379066099,1755113444069,-877.84,0.00019178,2]
[379066100,1755113444082,-461.82082709,0.00019178,2]
[379066101,1755113444092,-460.0,0.00019178,2]
[379066102,1755113444101,-460.0,0.00019178,2]
[379066103,1755113444111,-460.0,0.00019178,2]
[379066104,1755113444120,-701.0,0.00019178,2]
[379066105,1755113444130,-460.0,0.00019178,2]
[379066106,1755113444139,-460.0,0.00019178,2]
[379066107,1755113444148,-460.0,0.00019178,2]
[379066108,1755113444158,-460.0,0.00019178,2]
[379066109,1755113444167,-460.0,0.00019178,2]
[379066110,1755113444177,-488.85,0.00019178,2]
[379066111,1755113444187,-460.0,0.00019178,2]
[379066112,1755113444196,-460.0,0.00019178,2]
[379066113,1755113444206,-460.0,0.00019178,2]
[379066114,1755113444215,-460.0,0.00019178,2]
[379066115,1755113444225,-460.0,0.00019178,2]
[379066116,1755113444235,-460.0,0.00019178,2]
[379066117,1755113444244,-460.0,0.00019178,2]
[379066118,1755113444253,-460.0,0.00019178,2]
[379066119,1755113444263,-158.65368744,0.00019178,2]
[379066120,1755113444273,-460.0,0.00019178,2]
[379066121,1755113444283,-460.0,0.00019178,2]
[379066122,1755113444292,-503.11,0.00019178,2]
[379066123,1755113444302,-676.32,0.00019178,2]
[379066124,1755113444312,-460.0,0.00019178,2]
[379066125,1755113444322,-1094.82,0.00019178,2]
[379066126,1755113444331,-825.67,0.00019178,2]
[379066127,1755113444341,-460.0,0.00019178,2]
[379066128,1755113444351,-460.0,0.00019178,2]
[379066129,1755113444360,-1357.12,0.00019178,2]
[379066130,1755113444369,-460.0,0.00019178,2]
[379066131,1755113444379,-460.0,0.00019178,2]
[379066132,1755113444389,-1144.0,0.00019178,2]
[379066133,1755113444398,-460.0,0.00019178,2]
[379066134,1755113444408,-460.0,0.00019178,2]
[379066135,1755113444418,-460.0,0.00019178,2]
[379066136,1755113444428,-460.0,0.00019178,2]
[379066137,1755113444438,-615.51,0.00019178,2]
[379066138,1755113444450,-460.0,0.00019178,2]
[379066139,1755113444463,-460.0,0.00019178,2]
[379066140,1755113444472,-504.81867666,0.00019178,2]
[379066141,1755113444481,-460.0,0.00019178,2]
[379066142,1755113444491,-460.0,0.00019178,2]
[379066143,1755113444500,-460.0,0.00019178,2]
[379066144,1755113444510,-460.0,0.00019178,2]
[379066145,1755113444520,-460.0,0.00019178,2]
[379066146,1755113444531,-460.0,0.00019178,2]
[379066147,1755113444540,-460.0,0.00019178,2]
[379066148,1755113444549,-632.93,0.00019178,2]
[379066149,1755113444559,-460.0,0.00019178,2]
[379066150,1755113444568,-1000.0,0.00019178,2]
[379066151,1755113444578,-905.52,0.00019178,2]
[379066152,1755113444587,-551.54,0.00019178,2]
[379066153,1755113444596,-460.0,0.00019178,2]
[379066154,1755113444605,-460.0,0.00019178,2]
[379066155,1755113444615,-460.0,0.00019178,2]
[379066156,1755113444625,-460.0,0.00019178,2]
[379066157,1755113444635,-460.0,0.00019178,2]
[379066158,1755113444644,-460.0,0.00019178,2]
[379066159,1755113444653,-460.0,0.00019178,2]
[379066160,1755113444663,-1608.21,0.00019178,2]
[379066161,1755113444673,-460.0,0.00019178,2]
[379066162,1755113444682,-460.0,0.00019178,2]
[379066163,1755113444691,-460.0,0.00019178,2]
[379066164,1755113444701,-460.0,0.00019178,2]
[379066165,1755113444711,-460.0,0.00019178,2]
[379066166,1755113444720,-460.0,0.00019178,2]
[379066167,1755113444729,-460.0,0.00019178,2]
[379066168,1755113444739,-460.0,0.00019178,2]
[379066169,1755113444749,-460.0,0.00019178,2]
[379066170,1755113444758,-460.0,0.00019178,2]
[379066171,1755113444767,-460.0,0.00019178,2]
[379066172,1755113444777,-460.0,0.00019178,2]
[379066173,1755113444786,-460.0,0.00019178,2]
[379066174,1755113444796,-2463.8,0.00019178,2]
[379066175,1755113444805,-460.0,0.00019178,2]
[379066176,1755113444814,-460.0,0.00019178,2]
[379066177,1755113444826,-460.0,0.00019178,2]
[379066178,1755113444835,-460.0,0.00019178,2]
[379066179,1755113444845,-473.90208002,0.00019178,2]
[379066180,1755113444854,-610.62,0.00019178,2]
[379066181,1755113444864,-467.21,0.00019178,2]
[379066182,1755113444874,-460.0,0.00019178,2]
[379066183,1755113444884,-460.0,0.00019178,2]
[379066184,1755113444893,-460.0,0.00019178,2]
[379066185,1755113444903,-460.0,0.00019178,2]
[379066186,1755113444912,-460.0,0.00019178,2]
[379066187,1755113444921,-460.0,0.00019178,2]
[379066188,1755113444932,-460.0,0.00019178,2]
[379066189,1755113444941,-162.27,0.00019178,2]
[379066190,1755113444952,-460.0,0.00019178,2]
[379066191,1755113444962,-460.0,0.00019178,2]
[379066192,1755113444972,-460.0,0.00019178,2]
[379066193,1755113444983,-460.0,0.00019178,2]
[379066194,1755113444993,-460.0,0.00019178,2]
[379066195,1755113445004,-460.0,0.00019178,2]
[379066196,1755113445014,-460.0,0.00019178,2]
[379066197,1755113445024,-737.6,0.00019178,2]
[379066198,1755113445035,-460.0,0.00019178,2]
[379066199,1755113445044,-460.0,0.00019178,2]
[379066200,1755113445055,-460.0,0.00019178,2]
[379066201,1755113445064,-460.0,0.00019178,2]
[379066202,1755113445074,-460.0,0.00019178,2]
[379066203,1755113445085,-460.0,0.00019178,2]
[379066204,1755113445095,-460.0,0.00019178,2]
[379066205,1755113445106,-460.0,0.00019178,2]
[379066206,1755113445116,-160.0,0.00019178,2]
[379066207,1755113445126,-460.0,0.00019178,2]
[379066208,1755113445137,-460.0,0.00019178,2]
[379066209,1755113445147,-460.0,0.00019178,2]
[379066210,1755113445157,-460.0,0.00019178,2]
[379066211,1755113445167,-460.0,0.00019178,2]
[379066212,1755113445177,-460.0,0.00019178,2]
[379066213,1755113445187,-460.0,0.00019178,2]
[379066214,1755113445198,-460.0,0.00019178,2]
[379066215,1755113445210,-460.0,0.00019178,2]
[379066216,1755113445220,-460.0,0.00019178,2]
[379066217,1755113445231,-460.0,0.00019178,2]
[379066218,1755113445241,-460.0,0.00019178,2]
[379066219,1755113445252,-499.35,0.00019178,2]
[379066220,1755113445262,-810.59,0.00019178,2]
[379066221,1755113445272,-460.0,0.00019178,2]
[379066222,1755113445282,-460.0,0.00019178,2]
[379066223,1755113445292,-460.0,0.00019178,2]
[379066225,1755113445301,-460.0,0.00019178,2]
[379066226,1755113445311,-460.0,0.00019178,2]
[379066227,1755113445322,-460.0,0.00019178,2]
[379066228,1755113445332,-737.07,0.00019178,2]
[379066229,1755113445342,-460.83,0.00019178,2]
[379066230,1755113445353,-460.0,0.00019178,2]
[379066231,1755113445363,-460.0,0.00019178,2]
[379066232,1755113445374,-460.0,0.00019178,2]
[379066234,1755113445384,-460.0,0.00019178,2]
[379066235,1755113445394,-460.0,0.00019178,2]
[379066236,1755113445404,-492.22,0.00019178,2]
[379066238,1755113445415,-460.0,0.00019178,2]
[379066239,1755113445425,-460.0,0.00019178,2]
[379066240,1755113445435,-460.0,0.00019178,2]
[379066242,1755113445445,-460.0,0.00019178,2]
[379066244,1755113445457,-460.0,0.00019178,2]
[379066246,1755113445468,-460.0,0.00019178,2]
[379066248,1755113445478,-460.0,0.00019178,2]
[379066250,1755113445489,-460.0,0.00019178,2]
[379066252,1755113445502,-503.1730177,0.00019178,2]
[379066254,1755113445511,-691.85,0.00019178,2]
[379066256,1755113445521,-460.0,0.00019178,2]
[379066258,1755113445534,-460.0,0.00019178,2]
[379066260,1755113445544,-460.0,0.00019178,2]
[379066262,1755113445554,-460.0,0.00019178,2]
[379066264,1755113445564,-375.8062937,0.00019178,2]
[379066266,1755113445574,-460.0,0.00019178,2]
[379066268,1755113445584,-460.0,0.00019178,2]
[379066270,1755113445594,-460.0,0.00019178,2]
[379066272,1755113445603,-460.0,0.00019178,2]
[379066274,1755113445613,-460.0,0.00019178,2]
[379066276,1755113445624,-460.0,0.00019178,2]
[379066278,1755113445634,-460.0,0.00019178,2]
[379066280,1755113445644,-587.00090854,0.00019178,2]
[379066282,1755113445654,-895.95,0.00019178,2]